fUST/lending_fUST_20260403
["ID","MTS","AMOUNT","RATE_DAILY","PERIOD"]
[419322709,1775163041000,-604.0,0.00022913,2]
[419322791,1775163043676,-2905.66439076,0.00022913,2]
[419322793,1775163043685,-1048.2208897,0.00023144,2]
[419322795,1775163043695,-436.12,0.00023506,10]
[419322796,1775163043705,-78147.66256598,0.00023516,2]
[419322798,1775163043716,-250.820863,0.00023516,2]
[419322812,1775163046470,-698.81392647,0.00023144,2]
[419322813,1775163046481,-51555.04960449,0.00023516,2]
[419322814,1775163046491,-200.0,0.00023516,2]
[419322815,1775163046502,-1051.9,0.00023613,2]
[419322816,1775163046513,-166.0,0.00023616,3]
[419322817,1775163046523,-157.93747731,0.00023616,3]
[419322818,1775163046533,-946.0,0.00023616,3]
[419322819,1775163046543,-166.0,0.00023616,3]
[419322820,1775163046553,-946.0,0.00023616,3]
[419322821,1775163046562,-946.0,0.00023616,3]
[419322822,1775163046571,-647.0,0.00023616,3]
[419322823,1775163046581,-946.0,0.00023616,3]
[419322824,1775163046591,-647.0,0.00023616,3]
[419322825,1775163046601,-946.0,0.00023616,3]
[419322826,1775163046612,-172.0,0.00023616,3]
[419322827,1775163046621,-647.0,0.00023616,3]
[419322828,1775163046630,-946.0,0.00023616,3]
[419322829,1775163046641,-647.0,0.00023616,3]
[419322830,1775163046651,-946.0,0.00023616,3]
[419322831,1775163046660,-647.0,0.00023616,3]
[419322832,1775163046669,-946.0,0.00023616,3]
[419322833,1775163046678,-647.0,0.00023616,3]
[419322834,1775163046687,-946.0,0.00023616,3]
[419322835,1775163046697,-647.0,0.00023616,3]
[419322836,1775163046707,-946.0,0.00023616,3]
[419322837,1775163046716,-647.0,0.00023616,3]
[419322838,1775163046726,-801.79837408,0.00023616,3]
[419322839,1775163046736,-647.0,0.00023616,3]
[419322840,1775163046746,-647.0,0.00023616,3]
[419322841,1775163046755,-647.0,0.00023616,3]
[419322842,1775163046765,-647.0,0.00023616,3]
[419322843,1775163046775,-647.0,0.00023616,3]
[419322844,1775163046786,-647.0,0.00023616,3]
[419322845,1775163046796,-647.0,0.00023616,3]
[419322846,1775163046805,-669.40750528,0.00023616,3]
[419322847,1775163046815,-270.83333333,0.00023616,3]
[419322848,1775163046826,-250.0,0.00023616,5]
[419322849,1775163046836,-1523.17325029,0.00023844,2]
[419322850,1775163046847,-1050.1,0.000239,2]
[419322851,1775163046857,-249.54508032,0.00023956,120]
[419322852,1775163046866,-379.89019538,0.00023956,120]
[419322853,1775163046875,-695.5150762,0.00023993,120]
[419322854,1775163046885,-159.0,0.00024,6]
[419322855,1775163046894,-159.0,0.00024,6]
[419322856,1775163046903,-159.0,0.00024,5]
[419322857,1775163046913,-155.0,0.00024,2]
[419322858,1775163046923,-171.0,0.00024,2]
[419322859,1775163046933,-530.0,0.00024,2]
[419322860,1775163046943,-1035.0,0.00024,2]
[419322861,1775163046952,-1051.9,0.00024223,2]
[419322862,1775163046962,-500.0,0.00024254,2]
[419322863,1775163046971,-202.29079454,0.00024254,2]
[419322864,1775163046980,-324.9282386,0.00024261,2]
[419322865,1775163046989,-197.0398886,0.00024261,2]
[419322866,1775163046998,-500.0,0.000243,2]
[419322867,1775163047007,-249.54508031,0.00024301,120]
[419322868,1775163047016,-150.56754489,0.00024301,120]
[419322869,1775163047025,-600.0,0.00024377,10]
[419322870,1775163047034,-170.91,0.0002439,2]
[419322871,1775163047043,-170.88,0.0002439,2]
[419322872,1775163047053,-170.88,0.0002439,2]
[419322873,1775163047062,-170.88,0.0002439,2]
[419322874,1775163047073,-695.5150762,0.00024512,120]
[419322875,1775163047084,-363.1742199,0.00024658,2]
[419322876,1775163047095,-500.0,0.00024658,2]
[419322877,1775163047105,-512.14706269,0.00024658,2]
[419322878,1775163047114,-159.0,0.000247,7]
[419322879,1775163047123,-159.0,0.000247,7]
[419322880,1775163047132,-159.0,0.000247,6]
[419322881,1775163047144,-159.0,0.000247,6]
[419322882,1775163047153,-325.0,0.00024708,2]
[419322883,1775163047163,-363.43,0.00024768,10]
[419322884,1775163047172,-1500.0,0.00024778,2]
[419322885,1775163047182,-1500.0,0.00024778,2]
[419322886,1775163047191,-1500.0,0.00024778,2]
[419322887,1775163047201,-1500.0,0.00024778,2]
[419322888,1775163047210,-1500.0,0.00024778,2]
[419322889,1775163047220,-1500.0,0.00024778,2]
[419322890,1775163047229,-1500.0,0.00024778,2]
[419322891,1775163047238,-1500.0,0.00024778,2]
[419322892,1775163047247,-1500.0,0.00024778,2]
[419322893,1775163047256,-1500.0,0.00024778,2]
[419322894,1775163047266,-1049.0395483,0.00024778,2]
[419322895,1775163047278,-281.5134,0.00024778,2]
[419322896,1775163680846,-1000.0,0.00013426,2]
[419322906,1775164232419,-5000.0,0.00013027,2]
[419322907,1775164232429,-220.1,0.000135,2]
[419322908,1775164232438,-612.0,0.000135,2]
[419322909,1775164232447,-1000.0,0.00013699,2]
[419322910,1775164232456,-1044.84088394,0.00014175,2]
[419322911,1775164232466,-184.0,0.0001751,2]
[419322912,1775164232475,-440.0,0.0001751,2]
[419322913,1775164232484,-6016.77164339,0.00018234,2]
[419322914,1775164232496,-517.75085583,0.00018234,2]
[419322915,1775164232507,-1380.56441874,0.00018234,2]
[419323085,1775164238559,-2084.91308204,0.00018234,2]
[419323086,1775164238568,-263.0,0.00018777,2]
[419323087,1775164238578,-263.0,0.00019383,2]
[419323088,1775164238588,-150.25016772,0.000198,2]
[419323089,1775164238598,-263.0,0.00019989,2]
[419323090,1775164238608,-184.0,0.0002051,2]
[419323091,1775164238618,-440.0,0.0002051,2]
[419323092,1775164238627,-263.0,0.00020595,2]
[419323093,1775164238636,-685.806786,0.0002071,2]
[419323094,1775164238646,-500.0,0.00020873,2]
[419323095,1775164238655,-503.8693588,0.00020873,2]
[419323096,1775164238664,-503.70671462,0.00020873,2]
[419323097,1775164238674,-200.0,0.00020884,2]
[419323098,1775164238684,-1581.722499,0.00021,2]
[419323099,1775164238693,-449.999999,0.00021,2]
[419323100,1775164238703,-520.51524112,0.000211,2]
[419323101,1775164238712,-263.0,0.00021201,2]
[419323102,1775164238721,-166.029,0.00021521,2]
[419323103,1775164238731,-263.0,0.00021807,2]
[419323104,1775164238741,-606.89054701,0.00021834,5]
[419323105,1775164238751,-500.0,0.00021867,2]
[419323106,1775164238760,-309.67444645,0.00021867,2]
[419323107,1775164238771,-500.0,0.00021867,2]
[419323108,1775164238780,-165.0,0.00022,2]
[419323109,1775164238790,-153.0,0.00022,2]
[419323110,1775164238799,-450.0,0.00022,2]
[419323111,1775164238809,-263.0,0.00022414,2]
[419323112,1775164238818,-153.0,0.00023,2]
[419323113,1775164238827,-450.0,0.00023,2]
[419323114,1775164238837,-270.83333333,0.00023,2]
[419323115,1775164238847,-399.2498695,0.00023,2]
[419323116,1775164238857,-175.0,0.00023,7]
[419323117,1775164238866,-263.0,0.0002302,2]
[419323118,1775164238876,-184.0,0.0002351,2]
[419323119,1775164238886,-440.0,0.0002351,2]
[419323120,1775164238896,-263.0,0.00023626,2]
[419323121,1775164238905,-2914.76469782,0.00023804,40]
[419323122,1775164238915,-153.0,0.00024,2]
[419323123,1775164238924,-450.0,0.00024,2]
[419323124,1775164238934,-175.0,0.00024164,7]
[419323125,1775164238943,-2500.0,0.000242,2]
[419323126,1775164238953,-263.0,0.00024232,2]
[419323127,1775164238962,-196.1297366,0.00024254,2]
[419323128,1775164238971,-931.441586,0.00024282,2]
[419323129,1775164238980,-660.0,0.0002433,10]
[419323130,1775164238990,-157.22,0.0002439,2]
[419323131,1775164239000,-157.21,0.0002439,2]
[419323132,1775164239009,-157.21,0.0002439,2]
[419323133,1775164239018,-157.21,0.0002439,2]
[419323134,1775164239028,-157.21,0.0002439,2]
[419323135,1775164239037,-465.87595098,0.0002439,2]
[419323136,1775164239047,-3190.0915255,0.00024487,2]
[419323137,1775164239056,-928.0,0.00024658,5]
[419323138,1775164239068,-250.0,0.00024767,6]
[419323139,1775164239078,-302.86,0.00024768,10]
[419323140,1775164239088,-252.38,0.00024768,10]
[419323141,1775164239098,-166.0,0.00024778,3]
[419323142,1775164239107,-166.0,0.00024778,3]
[419323143,1775164239117,-166.0,0.00024778,3]
[419323144,1775164239126,-297.25765867,0.00024778,3]
[419323145,1775164239136,-647.0,0.00024778,3]
[419323146,1775164239146,-647.0,0.00024778,3]
[419323147,1775164239156,-339.0,0.00024778,3]
[419323148,1775164239166,-647.0,0.00024778,3]
[419323149,1775164239175,-339.0,0.00024778,3]
[419323150,1775164239185,-351.12622634,0.00024778,3]
[419323151,1775164239198,-295.87377366,0.00024778,3]
[419323152,1775164239207,-339.0,0.00024778,3]
[419323153,1775164239217,-946.0,0.00024778,3]
[419323154,1775164239227,-647.0,0.00024778,3]
[419323155,1775164239236,-172.07517013,0.00024778,3]
[419323156,1775164239246,-946.0,0.00024778,3]
[419323157,1775164239255,-647.0,0.00024778,3]
[419323158,1775164239264,-946.0,0.00024778,3]
[419323159,1775164239274,-946.0,0.00024778,3]
[419323160,1775164239283,-946.0,0.00024778,3]
[419323161,1775164239293,-946.0,0.00024778,3]
[419323162,1775164239302,-946.0,0.00024778,3]
[419323163,1775164239311,-927.37020146,0.00024778,3]
[419323164,1775164239320,-321.24948304,0.00024807,2]
[419323189,1775164243924,-310.58396732,0.0002439,2]
[419323190,1775164243935,-53.85578407,0.00024807,2]
[419323191,1775164243944,-186.57256143,0.00024807,2]
[419323192,1775164243954,-500.0,0.00024807,2]
[419323193,1775164243964,-500.0,0.00024807,2]
[419323194,1775164243973,-276.04639076,0.00024807,2]
[419323195,1775164243982,-500.0,0.00024807,2]
[419323196,1775164243992,-269.29018296,0.00024807,2]
[419323197,1775164244001,-10435.71108821,0.00024808,7]
[419323198,1775164244011,-270.83333333,0.00024808,7]
[419323199,1775164244021,-333.23512,0.00024808,7]
[419323200,1775164244031,-263.0,0.00024838,2]
[419323201,1775164244040,-1000.0,0.00024848,2]
[419323202,1775164244050,-500.0,0.00024873,2]
[419323203,1775164244059,-210.32,0.0002489,10]
[419323204,1775164244069,-1050.1,0.000249,2]
[419323205,1775164244078,-200.0,0.000249,2]
[419323206,1775164244087,-114738.54178868,0.000249,2]
[419323218,1775164247012,-207.05597821,0.00024807,2]
[419323219,1775164247022,-98694.65203032,0.000249,2]
[419323220,1775164247034,-928.0,0.00024932,5]
[419323221,1775164247044,-47360.83374368,0.0002498,2]
[419323402,1775165432434,-283.624,0.00012389,2]
[419323405,1775165432446,-441.36114199,0.00012389,2]
[419323436,1775165438600,-4275.01485801,0.00012389,2]
[419323437,1775165438610,-595.0,0.00012389,2]
[419323438,1775165438619,-5000.0,0.00012514,2]
[419323439,1775165438628,-1000.0,0.00013699,2]
[419323440,1775165438638,-158.695771,0.00018067,2]
[419323441,1775165438647,-184.0,0.00018665,2]
[419323442,1775165438656,-440.0,0.00018665,2]
[419323443,1775165438666,-216.56,0.000193,2]
[419323444,1775165438675,-262.57368698,0.00020308,2]
[419323445,1775165438685,-40117.06078322,0.00021665,2]
[419323446,1775165438696,-200.0,0.00021665,2]
[419323447,1775165438705,-184.0,0.00021665,2]
[419323448,1775165438716,-440.0,0.00021665,2]
[419323449,1775165438725,-153.0,0.00022,2]
[419323450,1775165438735,-383.0,0.00022,2]
[419323451,1775165438744,-166.029,0.00022,2]
[419323452,1775165438753,-861.57,0.000225,2]
[419323453,1775165438762,-858.94,0.000225,2]
[419323454,1775165438771,-161.72596215,0.00023,2]
[419323455,1775165438780,-383.0,0.00023,2]
[419323456,1775165438790,-270.83333333,0.00023,2]
[419323457,1775165438799,-500.0,0.0002335,2]
[419323458,1775165438809,-500.0,0.0002335,2]
[419323459,1775165438818,-500.0,0.0002335,2]
[419323460,1775165438827,-1086.25706821,0.00023898,2]
[419323461,1775165438836,-1000.0,0.00023898,2]
[419323462,1775165438847,-250.0,0.00023898,2]
[419323463,1775165438857,-1000.0,0.00023898,2]
[419323464,1775165438866,-500.0,0.000239,2]
[419323465,1775165438875,-383.0,0.00024,2]
[419323466,1775165438885,-157.21,0.0002439,2]
[419323467,1775165438894,-157.21,0.0002439,2]
[419323468,1775165438904,-1500.0,0.00024446,2]
[419323469,1775165438913,-257.55397572,0.00024446,2]
[419323470,1775165438922,-1500.0,0.00024446,2]
[419323471,1775165438932,-1003.32963871,0.00024448,2]
[419323472,1775165438941,-928.0,0.00024658,5]
[419323473,1775165438950,-184.0,0.00024665,2]
[419323474,1775165438960,-440.0,0.00024665,2]
[419323475,1775165438968,-198.79523026,0.00024814,2]
[419323476,1775165438978,-77065.03276605,0.000249,2]
[419323477,1775165438990,-1322.84389057,0.000249,2]
[419323478,1775165439000,-431.87462275,0.000249,2]
[419323552,1775165443945,-500.0,0.00020308,2]
[419323553,1775165443955,-388.50312807,0.00020308,2]
[419323554,1775165443964,-5000.0,0.00024651,2]
[419323555,1775165443974,-6685.11314218,0.000249,2]
[419323556,1775165444108,-2700.0000006,0.000249,2]
[419323557,1775165444120,-7840.07279625,0.000249,2]
[419323558,1775165444130,-158.8253049,0.00024901,2]
[419323559,1775165444139,-928.0,0.00024932,5]
[419323560,1775165444148,-36427.4300339,0.0002498,2]
[419323561,1775165444158,-250.0,0.00024986,6]
[419323562,1775165444167,-106472.63321003,0.00024989,2]
[419323578,1775165446926,-11902.38357116,0.00024989,2]
[419323593,1775166632571,-3093.05945852,0.00012142,2]
[419323594,1775166632583,-1906.94054148,0.00012142,2]
[419323595,1775166632593,-5000.0,0.00012265,2]
[419323597,1775166632602,-595.0,0.00012389,2]
[419323598,1775166632612,-1000.0,0.00013699,2]
[419323599,1775166632622,-300.0,0.00014647,38]
[419323600,1775166632632,-184.0,0.00019367,2]
[419323601,1775166632642,-440.0,0.00019367,2]
[419323602,1775166632652,-325.0,0.00022,2]
[419323603,1775166632661,-500.0,0.00022139,5]
[419323604,1775166632670,-184.0,0.00022367,2]
[419323605,1775166632679,-440.0,0.00022367,2]
[419323606,1775166632689,-14521.11677292,0.00022367,2]
[419323607,1775166632703,-1580.26245559,0.00022367,2]
[419323614,1775166637779,-33898.62077149,0.00022367,2]
[419323615,1775166637789,-270.83333333,0.00023,2]
[419323616,1775166637799,-325.0,0.00023,2]
[419323617,1775166637809,-175.27,0.0002389,10]
[419323618,1775166637818,-500.0,0.00023899,2]
[419323619,1775166637828,-354.30664531,0.00023899,2]
[419323620,1775166637837,-543.23247353,0.00023899,2]
[419323621,1775166637846,-500.0,0.00023899,2]
[419323622,1775166637856,-500.0,0.00023899,2]
[419323623,1775166637866,-500.0,0.00023899,2]
[419323624,1775166637877,-500.0,0.00023899,2]
[419323625,1775166637887,-282.38652814,0.00023899,2]
[419323626,1775166637896,-500.0,0.00023899,2]
[419323627,1775166637907,-500.0,0.00023899,2]
[419323628,1775166637916,-500.0,0.00023899,2]
[419323629,1775166637926,-500.0,0.00023899,2]
[419323630,1775166637935,-6818.50148251,0.000239,2]
[419323631,1775166637948,-428.47,0.000239,2]
[419323649,1775166642997,-585.97660249,0.000229,2]
[419323650,1775166643009,-1158.69004897,0.000229,2]
[419323651,1775166643019,-6216.13927768,0.000239,2]
[419323652,1775166643031,-587.80325138,0.000239,2]
[419323653,1775166643156,-124083.77758493,0.000239,2]
[419323654,1775166643167,-39814.660752,0.000239,2]
[419323655,1775166643177,-166.03,0.00023998,5]
[419323656,1775166643187,-1028.710178,0.00023998,2]
[419323657,1775166643197,-325.0,0.00024,2]
[419323658,1775166643207,-207.05597822,0.00024489,2]
[419323659,1775166643217,-928.0,0.00024658,5]
[419323660,1775166643227,-200.0,0.000249,2]
[419323661,1775166643237,-1296.91835637,0.000249,2]
[419323665,1775166646032,-1744.66665142,0.000239,2]
[419323666,1775166646044,-207.05597822,0.00024489,2]
[419323667,1775166646054,-7004.57209114,0.000249,2]
[419323668,1775166646085,-637.00774766,0.000249,2]
[419323669,1775166646244,-14629.3000864,0.000249,2]
[419323670,1775166646256,-3661.62014939,0.000249,2]
[419323671,1775166646298,-10307.46985061,0.000249,2]
[419323676,1775167280570,-1328.50430415,0.00013426,2]
[419323678,1775167766101,466.66240069,8.48e-05,2]
[419323684,1775167815010,1894.83877554,5e-05,2]
[419323690,1775167831766,-5000.0,9.9e-05,2]
[419323691,1775167831776,-559.0,9.9e-05,2]
[419323692,1775167831786,-337.95516601,0.0001,2]
[419323693,1775167831795,-186.396651,0.0001,2]
[419323694,1775167831805,-3185.32558105,0.000125,2]
[419323695,1775167831816,-677.26267608,0.000125,2]
[419323696,1775167831827,-7552.38071738,0.000125,2]
[419323697,1775167831838,-6203.93207655,0.00013562,2]
[419323698,1775167831848,-1000.0,0.00013699,2]
[419323699,1775167831858,-500.0,0.00016999,2]
[419323700,1775167831867,-407.09953623,0.00016999,2]
[419323701,1775167831877,-380.26273147,0.00016999,2]
[419323703,1775167831886,-1445.87389648,0.00017,2]
[419323704,1775167831914,-305.668248,0.00016999,2]
[419323705,1775167831926,-194.331752,0.00016999,2]
[419323706,1775167831936,-500.0,0.00016999,2]
[419323707,1775167831945,-4305.668248,0.00017,2]
[419323710,1775167838094,-448.80626474,0.00016999,2]
[419323711,1775167838104,-500.0,0.00016999,2]
[419323712,1775167838113,-500.0,0.00016999,2]
[419323713,1775167838123,-500.0,0.00016999,2]
[419323714,1775167838132,-500.0,0.00016999,2]
[419323715,1775167838141,-500.0,0.00016999,2]
[419323716,1775167838150,-500.0,0.00016999,2]
[419323717,1775167838159,-500.0,0.00016999,2]
[419323718,1775167838168,-500.0,0.00016999,2]
[419323719,1775167838178,-500.0,0.00016999,2]
[419323720,1775167838187,-500.0,0.00016999,2]
[419323721,1775167838197,-106794.0789646,0.00017,2]
[419323722,1775167838206,-9281.99298765,0.00018,2]
[419323723,1775167838215,-5012.47619491,0.00018,2]
[419323724,1775167838224,-89739.29770357,0.0001847,2]
[419323725,1775167838233,-575.9482896,0.00018873,2]
[419323726,1775167838243,-4124.89008428,0.00019122,2]
[419323727,1775167838252,-1533.4653049,0.00019275,6]
[419323728,1775167838261,-10000.0,0.00019315,2]
[419323729,1775167838271,-184.0,0.0001938,2]
[419323730,1775167838280,-440.0,0.0001938,2]
[419323731,1775167838290,-1308.4999886,0.00020191,2]
[419323732,1775167838299,-158.695771,0.00020291,2]
[419323733,1775167838308,-1000.0,0.00020515,2]
[419323734,1775167838317,-15380.3736,0.00021211,2]
[419323735,1775167838327,-1308.49998856,0.00021578,2]
[419323736,1775167838337,-151.0,0.000217,3]
[419323737,1775167838346,-151.0,0.00022,4]
[419323738,1775167838356,-277.0,0.00022,2]
[419323739,1775167838365,-176.0,0.00022,2]
[419323740,1775167838374,-1174.88395726,0.000221,22]
[419323741,1775167838384,-1159.08446138,0.000221,22]
[419323742,1775167838393,-184.0,0.0002238,2]
[419323743,1775167838403,-440.0,0.0002238,2]
[419323744,1775167838412,-1308.49998856,0.00022965,2]
[419323745,1775167838423,-206.671,0.00023,2]
[419323746,1775167838433,-277.0,0.00023,2]
[419323747,1775167838443,-270.83333333,0.00023,2]
[419323748,1775167838452,-300.0,0.00023136,2]
[419323749,1775167838462,-500.0,0.00023587,5]
[419323750,1775167838472,-277.0,0.00024,2]
[419323751,1775167838484,-1308.49998856,0.00024352,2]
[419323752,1775167838494,-928.0,0.00024658,5]
[419323753,1775167838504,-266.0,0.00024875,2]
[419323754,1775167838514,-500.0,0.000249,2]
[419323755,1775167838524,-200.0,0.00024931,2]
[419323756,1775167838534,-928.0,0.00024932,5]
[419323757,1775167838543,-1314.642605,0.0002498,2]
[419323758,1775167838553,-151.0,0.0002498,2]
[419323759,1775167838562,-1314.642605,0.0002498,2]
[419323760,1775167838572,-1314.642605,0.0002498,2]
[419323761,1775167838581,-1314.642605,0.0002498,2]
[419323762,1775167838591,-26067.3528021,0.0002498,2]
[419323763,1775167838600,-84018.88330213,0.00024989,2]
[419323764,1775167838613,-80518.99701568,0.00024989,2]
[419323765,1775167838622,-6846.0,0.00024989,30]
[419323766,1775167838632,-201.33016915,0.00024989,3]
[419323767,1775167838641,-946.0,0.00024989,3]
[419323768,1775167838650,-200.0,0.00024989,3]
[419323769,1775167838659,-946.0,0.00024989,3]
[419323770,1775167838668,-946.0,0.00024989,3]
[419323771,1775167838677,-946.0,0.00024989,3]
[419323772,1775167838687,-946.0,0.00024989,3]
[419323773,1775167838696,-339.0,0.00024989,3]
[419323774,1775167838706,-946.0,0.00024989,3]
[419323775,1775167838715,-647.0,0.00024989,3]
[419323776,1775167838725,-339.0,0.00024989,3]
[419323777,1775167838734,-946.0,0.00024989,3]
[419323778,1775167838744,-647.0,0.00024989,3]
[419323779,1775167838753,-339.0,0.00024989,3]
[419323780,1775167838763,-946.0,0.00024989,3]
[419323781,1775167838772,-647.0,0.00024989,3]
[419323782,1775167838782,-339.0,0.00024989,3]
[419323783,1775167838791,-724.0,0.00024989,3]
[419323784,1775167838800,-647.0,0.00024989,3]
[419323785,1775167838810,-339.0,0.00024989,3]
[419323786,1775167838819,-647.0,0.00024989,3]
[419323787,1775167838828,-339.0,0.00024989,3]
[419323788,1775167838837,-647.0,0.00024989,3]
[419323789,1775167838846,-647.0,0.00024989,3]
[419323790,1775167838856,-647.0,0.00024989,3]
[419323791,1775167838865,-647.0,0.00024989,3]
[419323792,1775167838874,-647.0,0.00024989,3]
[419323793,1775167838883,-721.84176436,0.00024989,3]
[419323794,1775167838895,-163.0,0.00024989,3]
[419323795,1775167838905,-192.392176,0.00024989,3]
[419323796,1775167838915,-151.0,0.0002499,2]
[419323797,1775167838924,-1249.68808,0.0002499,2]
[419323798,1775167838935,-1249.68808,0.0002499,2]
[419323799,1775167838944,-1249.68808,0.0002499,2]
[419323800,1775167838954,-1249.68808,0.0002499,2]
[419323801,1775167838964,-211.364108,0.0002499,2]
[419323802,1775167838972,-297.029265,0.0002499,2]
[419323803,1775167838982,-297.029265,0.0002499,2]
[419323804,1775167838992,-297.029265,0.0002499,2]
[419323805,1775167839001,-297.029265,0.0002499,2]
[419323806,1775167839011,-243.078236,0.0002499,2]
[419323807,1775167839020,-243.078236,0.0002499,2]
[419323808,1775167839031,-243.078236,0.0002499,2]
[419323809,1775167839040,-243.078236,0.0002499,2]
[419323810,1775167839049,-151.0,0.0002499,2]
[419323811,1775167839059,-157.502207,0.0002499,2]
[419323812,1775167839068,-192.021765,0.0002499,2]
[419323813,1775167839077,-151.0,0.0002499,2]
[419323814,1775167839086,-157.502207,0.0002499,2]
[419323815,1775167839095,-192.021765,0.0002499,2]
[419323816,1775167839105,-151.0,0.0002499,2]
[419323817,1775167839114,-157.502207,0.0002499,2]
[419323818,1775167839123,-192.021765,0.0002499,2]
[419323819,1775167839132,-165.638171,0.0002499,2]
[419323820,1775167839142,-151.0,0.0002499,2]
[419323821,1775167839151,-192.021765,0.0002499,2]
[419323822,1775167839160,-157.502207,0.0002499,2]
[419323823,1775167839170,-151.0,0.0002499,2]
[419323824,1775167839179,-151.0,0.0002499,2]
[419323825,1775167839188,-151.0,0.0002499,2]
[419323826,1775167839197,-153.506304,0.0002499,2]
[419323827,1775167839207,-151.0,0.0002499,2]
[419323828,1775167839216,-151.0,0.0002499,2]
[419323829,1775167839225,-151.0,0.0002499,2]
[419323830,1775167839234,-283.511464,0.0002499,2]
[419323831,1775167839243,-514.35868,0.0002499,2]
[419323832,1775167839252,-514.35868,0.0002499,2]
[419323833,1775167839262,-514.35868,0.0002499,2]
[419323834,1775167839271,-151.0,0.0002499,2]
[419323835,1775167839280,-514.35868,0.0002499,2]
[419323836,1775167839289,-26067.3528021,0.0002499,2]
[419323837,1775167839298,-200.0,0.0002499,2]
[419323838,1775167839308,-151.0,0.0002499,2]
[419323839,1775167839317,-1376.384526,0.0002499,2]
[419323840,1775167839327,-1376.384526,0.0002499,2]
[419323841,1775167839337,-151.0,0.0002499,2]
[419323842,1775167839348,-1376.384526,0.0002499,2]
[419323843,1775167839358,-151.0,0.0002499,2]
[419323844,1775167839367,-1376.384526,0.0002499,2]
[419323845,1775167839377,-151.0,0.0002499,2]
[419323846,1775167839386,-151.0,0.0002499,2]
[419323847,1775167839396,-151.0,0.0002499,2]
[419323848,1775167839405,-1465.021704,0.0002499,2]
[419323849,1775167839414,-151.0,0.0002499,2]
[419323850,1775167839424,-1465.021704,0.0002499,2]
[419323851,1775167839433,-151.0,0.0002499,2]
[419323852,1775167839443,-1465.021704,0.0002499,2]
[419323853,1775167839452,-151.0,0.0002499,2]
[419323854,1775167839461,-1465.021704,0.0002499,2]
[419323855,1775167839471,-151.0,0.0002499,2]
[419323856,1775167839481,-154.920405,0.0002499,2]
[419323857,1775167839490,-154.920405,0.0002499,2]
[419323858,1775167839499,-154.920405,0.0002499,2]
[419323859,1775167839509,-154.920405,0.0002499,2]
[419323860,1775167839518,-151.0,0.0002499,2]
[419323861,1775167839528,-151.0,0.0002499,2]
[419323862,1775167839537,-151.627647,0.0002499,2]
[419323863,1775167839547,-1314.642605,0.0002499,2]
[419323864,1775167839557,-161.817078,0.0002499,2]
[419323865,1775167839567,-1314.642605,0.0002499,2]
[419323866,1775167839576,-1314.642605,0.0002499,2]
[419323867,1775167839586,-1314.642605,0.0002499,2]
[419323868,1775167839597,-151.0,0.00024996,2]
[419323869,1775167839609,-30000.0,0.00025,15]
[419323870,1775167839619,-653.91927236,0.00025,2]
[419323871,1775167839628,-151.0,0.00025,2]
[419323872,1775167839639,-151.0,0.00025,2]
[419323873,1775167839649,-5076.03,0.00025,30]
[419323874,1775167839659,-151.0,0.00025,2]
[419323875,1775167839668,-1313.825201,0.00025,5]
[419323876,1775167839678,-160.194647,0.00025,2]
[419323877,1775167839687,-151.0,0.00025,2]